bitfinex-derivatives/quotes_SOLF0:USTF0_20260107
["timestamp","ask_amount","ask_price","bid_price","bid_amount"]
[1767808189636,3.59125539,135.95,135.88,9.02089972]
[1767808189933,3.59125539,135.95,135.87,9.02089972]
[1767808190239,3.59125539,135.93,135.87,9.02089972]
[1767808191136,3.59125539,135.93,135.86,11.93939732]
[1767808191338,3.59125539,135.93,135.86,2.9184976]
[1767808191536,3.59125539,135.92,135.85,15.65159972]
[1767808192339,3.59125539,135.92,135.85,18.58577987]
[1767808193143,3.59125539,135.92,135.85,9.56488015]
[1767808193340,3.59125539,135.92,135.85,11.95507987]
[1767808194338,3.59125539,135.92,135.85,2.93418015]
[1767808198343,10.21865539,135.92,135.85,2.93418015]
[1767808199243,3.59125539,135.91,135.85,2.93418015]
[1767808199435,3.59125539,135.9,135.85,2.93418015]
[1767808200354,10.21955539,135.9,135.85,2.93418015]
[1767808200645,3.59125539,135.9,135.83,2.97342445]
[1767808201044,10.21955539,135.9,135.83,2.97342445]
[1767808201351,3.59125539,135.9,135.83,2.97342445]
[1767808201539,6.6293,135.88,135.83,2.97342445]
[1767808204145,3.66145875,135.87,135.8,99.00473922]
[1767808204538,3.66145875,135.87,135.8,89.9838395]
[1767808205750,6.6303,135.86,135.81,3.00816309]
[1767808207246,3.66145875,135.87,135.81,3.00816309]
[1767808208347,3.66145875,135.86,135.77,12.04177991]
[1767808208849,3.66145875,135.86,135.78,3.02088019]
[1767808210541,3.66145875,135.86,135.78,9.65498019]
[1767808210542,10.29195875,135.86,135.78,9.65498019]
[1767808210748,10.29195875,135.86,135.79,3.02909289]
[1767808211654,10.29195875,135.86,135.79,9.66259289]
[1767808211853,3.66145875,135.86,135.8,3.03312049]
[1767808212551,3.66145875,135.86,135.8,9.66622049]
[1767808212750,3.66145875,135.86,135.81,3.03710334]
[1767808213055,6.6298,135.87,135.81,3.03710334]
[1767808213545,3.66145875,135.86,135.81,3.03710334]
[1767808213746,3.66145875,135.86,135.79,3.04102786]
[1767808214053,3.66145875,135.85,135.77,3.04490933]
[1767808215454,3.66145875,135.84,135.77,3.04490933]
[1767808216251,3.66145875,135.83,135.76,3.05256389]
[1767808216959,3.66145875,135.83,135.77,3.05632095]
[1767808217256,10.29265875,135.85,135.77,3.05632095]
[1767808217440,10.29265875,135.85,135.78,3.05632095]
[1767808217647,10.29155875,135.87,135.78,3.05632095]
[1767808218143,10.29155875,135.87,135.79,3.06002146]
[1767808219547,10.29155875,135.87,135.8,6.6331]
[1767808220954,3.66145875,135.86,135.8,6.6331]
[1767808221449,3.66145875,135.86,135.79,3.06002146]
[1767808221852,3.66145875,135.85,135.78,87.0]
[1767808222054,3.66145875,135.85,135.77,9.70528423]
[1767808222557,3.66145875,135.84,135.77,9.70528423]
[1767808224058,3.66145875,135.84,135.78,3.08134848]
[1767808224947,3.66145875,135.83,135.78,3.08134848]
[1767808225353,3.66145875,135.83,135.77,6.6344]
[1767808225354,3.66145875,135.83,135.74,12.10565806]
[1767808225567,3.66145875,135.79,135.72,3.08475834]
[1767808226148,6.6342,135.78,135.72,3.08475834]
[1767808226547,10.29565875,135.78,135.72,3.08475834]
[1767808226746,3.66145875,135.76,135.69,100.51524618]
[1767808226950,3.66145875,135.76,135.69,99.23324213]
[1767808227148,3.66145875,135.76,135.69,90.1081388]
[1767808227669,3.66145875,135.75,135.67,3.09149267]
[1767808228458,3.66145875,135.77,135.7,3.09480006]
[1767808229158,3.66145875,135.77,135.64,18.66624696]
[1767808229159,3.66145875,135.73,135.64,18.66624696]
[1767808229556,3.66145875,135.73,135.65,3.09806041]
[1767808229756,3.66145875,135.73,135.65,9.73846041]
[1767808229967,3.66145875,135.73,135.65,3.09806041]
[1767808230263,3.66145875,135.75,135.66,3.10130105]
[1767808230659,3.66145875,135.74,135.66,9.74120105]
[1767808231757,10.29785875,135.74,135.66,3.10130105]
[1767808232063,3.57127346,135.73,135.64,18.6796046]
[1767808233170,3.57127346,135.73,135.65,3.11450428]
[1767808235571,3.57127346,135.72,135.65,3.11450428]
[1767808236173,10.20877346,135.72,135.65,3.11450428]
[1767808236367,3.57127346,135.72,135.65,3.11450428]
[1767808236568,3.57127346,135.72,135.64,15.56818655]
[1767808236870,3.57127346,135.72,135.64,18.69178142]
[1767808237271,3.57127346,135.72,135.65,3.12654508]
[1767808237564,3.57127346,135.72,135.65,9.76684508]
[1767808237767,3.57127346,135.71,135.64,15.56818655]
[1767808238169,103.2246,135.75,135.65,9.76987246]
[1767808238170,3.57127346,135.74,135.65,9.76987246]
[1767808239661,3.57127346,135.73,135.65,9.76987246]
[1767808240374,3.57127346,135.73,135.66,6.6399]
[1767808240572,3.57127346,135.73,135.66,9.77508279]
[1767808241070,3.57127346,135.73,135.67,9.77738567]
[1767808241975,3.57127346,135.75,135.68,3.13798567]
[1767808242467,10.20597346,135.77,135.69,3.14075414]
[1767808243373,10.20657346,135.76,135.69,3.14075414]
[1767808243670,3.57127346,135.76,135.69,3.14075414]
[1767808243873,3.57127346,135.76,135.67,90.22348555]
[1767808244069,3.57127346,135.74,135.67,3.14348555]
[1767808244573,6.6366,135.73,135.67,3.14348555]
[1767808246875,10.20837346,135.72,135.65,90.23147231]
[1767808247376,3.57127346,135.72,135.65,3.15147231]
[1767808248277,3.57127346,135.72,135.65,9.79197231]
[1767808248472,3.57127346,135.72,135.66,3.15670409]
[1767808251572,3.57127346,135.71,135.64,105.83249324]
[1767808252071,3.57127346,135.71,135.64,18.73249324]
[1767808252374,3.57127346,135.69,135.64,15.56818655]
[1767808253979,2.16654326,135.67,135.59,3.16920596]
[1767808254378,8.80624326,135.67,135.59,9.81240596]
[1767808255075,6.6397,135.67,135.59,9.81240596]
[1767808255281,6.6397,135.67,135.59,3.16920596]
[1767808256081,6.6397,135.67,135.59,9.81240596]
[1767808256281,6.6397,135.67,135.56,106.81229472]
[1767808256282,103.2709,135.69,135.56,3.75815847]
[1767808256579,2.16654326,135.68,135.57,3.75815847]
[1767808256780,89.26654326,135.69,135.57,3.75815847]
[1767808257083,89.26654326,135.69,135.6,3.75815847]
[1767808257471,87.1,135.69,135.6,5.92470173]
[1767808257675,87.1,135.69,135.61,3.75815847]
[1767808257876,6.6382,135.7,135.61,3.75815847]
[1767808258083,93.7574,135.72,135.62,3.75815847]
[1767808258286,6.6374,135.72,135.62,3.75815847]
[1767808258876,6.6374,135.72,135.63,2.16654326]
[1767808259079,6.6374,135.72,135.63,5.92470173]
[1767808259389,2.16654326,135.73,135.64,3.75815847]
[1767808260488,8.80324326,135.73,135.64,3.75815847]
[1767808260686,6.6367,135.73,135.64,3.75815847]
[1767808260992,87.12,135.74,135.66,3.75815847]
[1767808261189,93.7562,135.74,135.66,3.75815847]
[1767808261392,89.28654326,135.74,135.66,3.75815847]
[1767808261694,2.16654326,135.72,135.64,4.0173704]
[1767808261990,2.16654326,135.72,135.6,3.68811275]
[1767808261991,2.16654326,135.68,135.6,3.68811275]
[1767808262192,2.16654326,135.68,135.58,3.68811275]
[1767808262381,6.6412,135.64,135.57,87.12]
[1767808262584,6.6412,135.64,135.56,3.68811275]
[1767808264287,6.6402,135.66,135.56,3.68811275]
[1767808264893,103.2912,135.66,135.56,3.68811275]
[1767808267387,6.6401,135.66,135.57,3.68811275]
[1767808267588,190.4228,135.67,135.57,3.68811275]
[1767808268196,87.14,135.67,135.57,3.68811275]
[1767808268695,103.2914,135.66,135.57,3.68811275]
[1767808269191,6.6412,135.64,135.57,3.68811275]
[1767808269701,190.426,135.67,135.57,3.68811275]
[1767808269900,6.6404,135.66,135.57,3.68811275]
[1767808270097,190.426,135.67,135.57,3.68811275]
[1767808270707,6.6411,135.64,135.57,3.68811275]
[1767808271003,103.2916,135.66,135.56,87.14]
[1767808271300,108.45597724,135.67,135.55,3.68811275]
[1767808271605,87.14,135.66,135.55,3.68811275]
[1767808271800,87.14,135.66,135.56,10.33291275]
[1767808272004,87.14,135.66,135.56,3.68811275]
[1767808272299,103.3129,135.63,135.49,103.4164]
[1767808272606,6.6436,135.59,135.5,3.68811275]
[1767808272799,87.14,135.58,135.5,3.68811275]
[1767808273101,6.6428,135.61,135.51,10.33531275]
[1767808273297,87.14,135.6,135.51,10.33531275]
[1767808273501,87.14,135.59,135.51,3.68811275]
[1767808273702,103.2714,135.69,135.52,3.68811275]
[1767808273902,87.14,135.65,135.52,3.68811275]
[1767808274305,87.14,135.65,135.54,6.6457]
[1767808274306,6.6422,135.62,135.54,6.6457]
[1767808274495,87.16,135.61,135.54,6.6457]
[1767808274694,6.6422,135.62,135.53,6.6462]
[1767808274894,87.16,135.61,135.52,3.68811275]
[1767808275298,6.6422,135.62,135.52,3.68811275]
[1767808275498,87.16,135.61,135.52,3.68811275]
[1767808275701,87.16,135.61,135.53,6.6462]
[1767808275901,6.6422,135.62,135.53,6.6462]
[1767808276211,87.16,135.61,135.55,10.33331275]
[1767808276913,5.16997724,135.67,135.56,10.33271275]
[1767808276914,6.6403,135.66,135.56,10.33271275]
[1767808277102,6.6403,135.66,135.56,3.68811275]
[1767808277304,87.16,135.65,135.56,3.68811275]
[1767808277804,87.16,135.64,135.56,3.68811275]
[1767808278616,87.16,135.63,135.56,3.68811275]
[1767808279208,87.16,135.63,135.53,3.68811275]
[1767808279717,93.8017,135.63,135.53,3.68811275]
[1767808280014,87.16,135.63,135.53,3.68811275]
[1767808280214,6.6424,135.62,135.53,3.68811275]
[1767808283208,6.6414,135.64,135.54,3.68811275]
[1767808283416,87.18,135.63,135.54,3.68811275]
[1767808283916,93.8216,135.63,135.54,3.68811275]
[1767808285521,93.8216,135.63,135.54,10.33391275]
[1767808285717,87.18,135.64,135.55,3.68811275]
[1767808286319,6.6416,135.63,135.52,3.68811275]
[1767808286716,6.6416,135.63,135.52,10.33461275]
[1767808286917,6.6416,135.63,135.52,3.68811275]
[1767808287230,87.18,135.62,135.53,3.68811275]
[1767808287408,87.18,135.63,135.53,3.68811275]
[1767808288627,6.6399,135.67,135.56,3.68811275]
[1767808288815,87.18,135.66,135.56,3.68811275]
[1767808289122,87.18,135.66,135.57,6.6442]
[1767808290525,93.8201,135.66,135.58,6.6439]
[1767808291122,93.8201,135.66,135.56,3.68811275]
[1767808291321,6.6405,135.65,135.56,3.68811275]
[1767808291520,87.18,135.66,135.54,107.06641275]
[1767808291725,103.2831,135.67,135.57,6.6443]
[1767808292023,103.2406,135.73,135.58,3.86752922]
[1767808292228,190.4347,135.71,135.58,3.86752922]
[1767808292626,87.18,135.7,135.58,3.86752922]
[1767808293331,103.2681,135.69,135.55,3.86752922]
[1767808293720,6.6401,135.66,135.57,6.6444]
[1767808293920,6.6401,135.66,135.57,10.51192922]
[1767808294222,87.18,135.65,135.55,3.86752922]
[1767808294429,6.6416,135.63,135.55,3.86752922]
[1767808295216,87.18,135.65,135.55,3.86752922]
[1767808295724,190.4807,135.65,135.52,3.86752922]
[1767808295923,103.3007,135.65,135.52,3.86752922]
[1767808296227,87.18,135.64,135.52,3.86752922]
[1767808296629,6.6423,135.62,135.53,10.51382922]
[1767808297222,6.6426,135.61,135.53,3.86752922]
[1767808297831,87.18,135.62,135.53,3.86752922]
[1767808298128,87.18,135.63,135.53,3.86752922]
[1767808299025,87.18,135.63,135.54,3.86752922]
[1767808300131,93.8217,135.63,135.54,3.86752922]
[1767808300331,87.18,135.63,135.54,3.86752922]
[1767808301929,87.18,135.63,135.52,3.86752922]
[1767808303028,103.3296,135.61,135.5,12.98073642]
[1767808303332,87.18,135.6,135.5,3.86752922]
[1767808303725,103.3286,135.61,135.5,3.86752922]
[1767808303936,87.18,135.59,135.5,3.86752922]
[1767808305236,6.644,135.58,135.5,3.86752922]
[1767808308439,6.6445,135.57,135.5,3.86752922]
[1767808313435,93.8434,135.6,135.52,6.6467]
[1767808314042,6.6435,135.59,135.52,6.6467]
[1767808317542,87.2,135.6,135.52,3.86752922]
[1767808318241,6.6435,135.59,135.52,10.51442922]
[1767808320444,6.6442,135.58,135.52,3.86752922]
[1767808320740,190.5392,135.6,135.5,12.98073642]
[1767808320943,103.3454,135.59,135.5,3.86752922]
[1767808322443,6.6454,135.56,135.5,3.86752922]
[1767808323042,6.6454,135.55,135.5,3.86752922]
[1767808323843,87.2,135.6,135.5,3.86752922]
[1767808324044,87.2,135.6,135.51,3.91599089]
[1767808324737,6.6439,135.59,135.52,3.91599089]
[1767808325342,87.2,135.61,135.52,3.91599089]
[1767808326046,116.5911,135.64,135.52,3.91599089]
[1767808326340,190.5155,135.63,135.52,3.91599089]
[1767808326543,103.3155,135.63,135.52,3.91599089]
[1767808326750,87.2,135.62,135.52,3.91599089]
[1767808327548,6.6435,135.59,135.52,3.91599089]
[1767808327948,87.2,135.62,135.52,3.91599089]
[1767808328351,6.643,135.6,135.52,10.56279089]
[1767808328649,87.2,135.61,135.5,13.02919809]
[1767808329153,87.2,135.61,135.51,3.91599089]
[1767808329549,6.6435,135.59,135.51,10.56339089]
[1767808330845,87.2,135.61,135.5,9.1132072]
[1767808330846,190.5317,135.61,135.5,9.1132072]
[1767808331146,103.3362,135.6,135.49,10.56389089]
[1767808331352,190.5362,135.6,135.49,10.56389089]
[1767808332052,6.6449,135.56,135.49,3.91599089]
[1767808332547,93.8449,135.56,135.49,3.91599089]
[1767808332942,6.6454,135.55,135.46,13.02919809]
[1767808333244,6.6454,135.55,135.46,3.91599089]
[1767808333450,93.8454,135.55,135.46,3.91599089]
[1767808333652,93.8454,135.55,135.46,10.56549089]
[1767808333854,93.8454,135.55,135.46,3.91599089]
[1767808334054,87.2,135.55,135.46,3.91599089]
[1767808334253,3.39729639,135.54,135.46,3.91599089]
[1767808335654,10.04329639,135.54,135.44,10.56639089]
[1767808335864,3.39729639,135.51,135.43,1e-08]
[1767808336162,3.39729639,135.46,135.36,10.57049089]
[1767808336349,3.39729639,135.46,135.36,3.91599089]
[1767808336761,3.39729639,135.48,135.37,3.91599089]
[1767808336957,90.59729639,135.48,135.37,3.91599089]
[1767808337253,3.39729639,135.51,135.4,3.91599089]
[1767808337561,87.2,135.5,135.4,3.91599089]
[1767808337864,90.61729639,135.51,135.42,3.91599089]
[1767808338455,90.61729639,135.51,135.4,3.91599089]
[1767808338656,3.39729639,135.51,135.4,3.91599089]
[1767808338860,87.22,135.5,135.4,3.91599089]
[1767808339960,87.22,135.5,135.41,3.91599089]
[1767808340461,3.39729639,135.51,135.41,10.56779089]
[1767808340663,87.22,135.5,135.41,10.56779089]
[1767808340858,3.39729639,135.54,135.43,3.91599089]
[1767808341048,87.22,135.53,135.45,10.56589089]
[1767808341557,124.79189986,135.55,135.46,3.91599089]
[1767808341758,131.43749986,135.55,135.46,3.91599089]
[1767808342156,3.39729639,135.54,135.43,10.56699089]
[1767808342357,106.78339639,135.54,135.43,3.91599089]
[1767808342661,6.6476,135.51,135.4,3.91599089]
[1767808343660,93.8876,135.51,135.41,10.56809089]
[1767808343861,6.6482,135.5,135.41,3.91599089]
[1767808344368,87.24,135.51,135.41,3.91599089]
[1767808344560,6.6472,135.52,135.41,3.91599089]
[1767808344760,93.8872,135.52,135.41,3.91599089]
[1767808345065,6.6475,135.51,135.41,10.56799089]
[1767808345563,6.6475,135.51,135.41,3.91599089]
[1767808346350,87.24,135.52,135.43,10.56709089]
[1767808347758,93.887,135.52,135.43,10.56709089]
[1767808348770,93.887,135.52,135.44,3.91599089]
[1767808349267,87.24,135.52,135.44,3.91599089]
[1767808349465,87.24,135.52,135.44,10.56659089]
[1767808349665,103.355,135.58,135.45,3.91599089]
[1767808349866,124.79189986,135.55,135.45,3.91599089]
[1767808350163,131.43739986,135.55,135.45,3.91599089]
[1767808350567,37.55189986,135.55,135.47,3.91599089]
[1767808353854,44.19759986,135.55,135.45,87.24]
[1767808354271,131.43759986,135.55,135.44,3.82989841]
[1767808354458,6.646,135.54,135.45,6.6501]
[1767808356362,6.6465,135.53,135.43,6.651]
[1767808356568,228.16889986,135.55,135.43,6.651]
[1767808356767,87.24,135.54,135.43,6.651]
[1767808356967,87.24,135.54,135.41,3.82989841]
[1767808358268,6.6469,135.52,135.44,6.6507]
[1767808358861,6.6475,135.51,135.44,6.6507]
[1767808359269,6.6475,135.51,135.41,10.48199841]
[1767808359565,87.24,135.5,135.41,10.48199841]
[1767808361166,87.24,135.5,135.42,3.82989841]
[1767808361471,93.8879,135.5,135.42,3.82989841]
[1767808361680,87.24,135.5,135.39,3.82989841]
[1767808361964,6.6489,135.48,135.39,3.82989841]
[1767808362667,108.59512218,135.5,135.39,3.82989841]
[1767808362868,87.24,135.49,135.39,3.82989841]
[1767808363069,87.24,135.49,135.36,87.24]
[1767808363070,6.6499,135.46,135.37,3.82989841]
[1767808363273,190.6647,135.49,135.37,3.82989841]
[1767808363973,6.6504,135.45,135.37,3.82989841]
[1767808366465,87.24,135.49,135.37,3.82989841]
[1767808366674,2.17722972,135.46,135.37,3.82989841]
[1767808367666,2.17722972,135.48,135.39,3.82989841]
[1767808368466,2.17722972,135.48,135.4,3.82989841]
[1767808368864,8.82622972,135.48,135.41,3.82989841]
[1767808369068,2.17722972,135.49,135.41,3.82989841]
[1767808369867,2.17722972,135.52,135.44,3.82989841]
[1767808370173,2.17722972,135.53,135.44,3.82989841]
[1767808370876,6.6474,135.51,135.44,3.82989841]
[1767808372279,8.82402972,135.53,135.44,3.82989841]
[1767808372474,6.6468,135.53,135.44,3.82989841]
[1767808372674,8.82402972,135.53,135.44,3.82989841]
[1767808373280,87.26,135.54,135.44,3.82989841]
[1767808373481,2.17722972,135.53,135.44,3.82989841]
[1767808374676,2.17722972,135.53,135.44,10.48069841]
[1767808374870,2.17722972,135.53,135.45,3.82989841]
[1767808377085,89.43722972,135.54,135.46,3.82989841]
[1767808377686,37.55189986,135.55,135.48,3.82989841]
[1767808378587,39.72912958,135.55,135.48,3.82989841]
[1767808378886,37.55189986,135.55,135.49,3.82989841]
[1767808379580,2.17722972,135.58,135.49,3.82989841]
[1767808380684,2.17722972,135.58,135.5,6.6478]
[1767808380883,87.26,135.59,135.49,3.82989841]
[1767808381388,89.43722972,135.59,135.49,3.82989841]
[1767808381577,87.26,135.59,135.51,3.70482885]
[1767808382385,2.17722972,135.58,135.51,3.70482885]
[1767808382882,87.26,135.59,135.5,6.6475]
[1767808383179,2.17722972,135.57,135.5,6.6475]
[1767808383387,87.26,135.59,135.5,6.6475]
[1767808383786,2.17722972,135.58,135.5,6.6475]
[1767808384592,8.82132972,135.58,135.5,6.6475]
[1767808384881,2.17722972,135.58,135.51,6.6473]
[1767808385075,2.17722972,135.58,135.5,3.98384161]
[1767808385076,2.17722972,135.6,135.5,3.98384161]
[1767808385279,2.17722972,135.58,135.5,3.98384161]
[1767808385583,2.17722972,135.58,135.51,6.6473]
[1767808386188,2.17722972,135.58,135.52,6.6467]
[1767808387176,87.24,135.6,135.53,6.6463]
[1767808387580,2.17722972,135.59,135.53,6.6463]
[1767808388386,87.24,135.6,135.53,6.6463]
[1767808388687,2.17722972,135.59,135.53,6.6463]
[1767808389490,2.17722972,135.59,135.54,6.6458]
[1767808389692,2.17722972,135.59,135.5,107.39554161]
[1767808389990,89.39722972,135.59,135.51,3.98384161]
[1767808390493,89.39722972,135.59,135.53,6.6463]
[1767808390891,6.6423,135.62,135.54,6.6459]
[1767808391084,89.39722972,135.61,135.54,6.6459]
[1767808391289,87.22,135.61,135.5,107.39554161]
[1767808391592,2.17722972,135.59,135.5,3.98384161]
[1767808391785,2.17722972,135.57,135.5,10.63134161]
[1767808391984,2.17722972,135.55,135.48,91.20384161]
[1767808392290,2.17722972,135.55,135.48,3.98384161]
[1767808393290,2.17722972,135.55,135.46,3.98384161]
[1767808396585,8.82262972,135.55,135.46,3.98384161]
[1767808397789,6.6449,135.57,135.47,3.98384161]
[1767808397996,2.17722972,135.56,135.47,3.98384161]
[1767808398588,2.17722972,135.54,135.47,3.98384161]
[1767808400703,8.82322972,135.54,135.47,3.98384161]
[1767808400904,190.5736,135.58,135.47,3.98384161]
[1767808401307,2.17722972,135.55,135.47,3.98384161]
[1767808402110,6.6459,135.54,135.47,3.98384161]
[1767808403807,8.82312972,135.54,135.47,3.98384161]
[1767808405209,2.17722972,135.54,135.47,3.98384161]
[1767808405410,2.17722972,135.54,135.47,10.63314161]
[1767808406007,87.22,135.58,135.49,3.98384161]
[1767808406309,2.17722972,135.55,135.49,3.98384161]
[1767808408124,6.6457,135.55,135.49,3.98384161]
[1767808409616,2.17722972,135.56,135.49,10.63214161]
[1767808409823,6.6449,135.57,135.5,3.98384161]
[1767808410121,8.82212972,135.57,135.5,3.98384161]
[1767808410525,6.6451,135.56,135.5,3.98384161]
[1767808411420,6.6455,135.55,135.5,3.98384161]
[1767808413423,6.6449,135.56,135.5,3.98384161]
[1767808415322,6.6444,135.57,135.5,3.98384161]
[1767808416625,6.645,135.56,135.5,3.98384161]
[1767808417015,87.22,135.59,135.5,3.98384161]
[1767808417617,6.645,135.56,135.5,3.98384161]
[1767808419627,6.6444,135.57,135.5,10.63164161]
[1767808421331,6.6449,135.56,135.5,10.63164161]
[1767808424732,6.6435,135.59,135.53,3.80052427]
[1767808425534,190.5443,135.62,135.51,3.80052427]
[1767808425727,106.73270638,135.6,135.51,3.80052427]
[1767808426830,6.6448,135.57,135.51,3.80052427]
[1767808431332,6.6448,135.57,135.51,10.44782427]
[1767808431827,3.39610638,135.6,135.51,10.44782427]
[1767808432238,3.39610638,135.6,135.51,3.80052427]
[1767808433440,3.39610638,135.6,135.48,87.22]
[1767808433441,106.73540638,135.6,135.49,3.80052427]
[1767808433634,3.39610638,135.57,135.44,13.6563138]
[1767808433839,3.39610638,135.57,135.47,3.80052427]
[1767808434040,87.22,135.56,135.47,3.80052427]
[1767808434632,6.6461,135.54,135.47,3.80052427]
[1767808436240,6.6466,135.53,135.47,3.80052427]
[1767808438242,6.6461,135.54,135.47,3.80052427]
[1767808439246,87.22,135.56,135.48,3.80052427]
[1767808440143,10.04060638,135.57,135.48,3.80052427]
[1767808440345,97.26060638,135.57,135.48,3.80052427]
[1767808440544,90.61610638,135.57,135.48,3.80052427]
[1767808440746,3.39610638,135.57,135.48,3.80052427]
[1767808441346,125.4708,135.61,135.45,100.8763138]
[1767808441347,93.8635,135.59,135.49,3.95018192]
[1767808441651,90.61610638,135.6,135.49,3.95018192]
[1767808442346,90.61610638,135.6,135.51,3.83326834]
[1767808442547,87.22,135.6,135.51,3.83326834]
[1767808442746,87.22,135.62,135.51,3.83326834]
[1767808443247,6.6425,135.61,135.53,3.83326834]
[1767808443752,87.22,135.62,135.53,3.83326834]
[1767808443940,87.22,135.62,135.53,10.47956834]
[1767808445536,87.22,135.62,135.54,10.47896834]
[1767808446049,3.39610638,135.63,135.54,10.47896834]
[1767808446245,3.39610638,135.66,135.55,10.47856834]
[1767808446549,87.22,135.65,135.55,10.47856834]
[1767808446745,6.641,135.64,135.56,10.47806834]
[1767808449256,6.641,135.64,135.57,6.6443]
[1767808449760,87.22,135.65,135.57,10.47756834]
[1767808449948,87.22,135.65,135.58,10.47716834]
[1767808450256,97.23660638,135.66,135.58,10.47716834]
[1767808450453,10.03660638,135.66,135.58,10.47716834]
[1767808450649,3.39610638,135.66,135.58,3.83326834]
[1767808451151,21.60889035,135.72,135.61,3.83326834]
[1767808451352,90.59610638,135.71,135.61,3.83326834]
[1767808451749,87.2,135.7,135.61,3.83326834]
[1767808452150,93.8382,135.7,135.61,3.83326834]
[1767808455259,6.6386,135.69,135.61,3.83326834]
[1767808457359,6.6391,135.68,135.61,3.83326834]
[1767808457961,6.6386,135.69,135.61,3.83326834]
[1767808458963,6.6391,135.68,135.61,3.83326834]
[1767808459261,190.4622,135.7,135.58,91.03326834]
[1767808459458,190.4622,135.7,135.59,3.83326834]
[1767808459665,6.6397,135.67,135.6,3.83326834]
[1767808460064,87.2,135.7,135.6,3.83326834]
[1767808460265,6.6391,135.68,135.6,3.83326834]
[1767808460569,6.6391,135.68,135.61,3.83326834]
[1767808461271,6.64,135.67,135.61,3.83326834]
[1767808462470,93.8383,135.7,135.61,3.83326834]
[1767808465265,3.39610638,135.71,135.59,3.83326834]
[1767808465464,87.16,135.7,135.59,3.83326834]
[1767808466571,93.7985,135.7,135.6,10.47596834]
[1767808466763,93.7985,135.7,135.61,3.83326834]
[1767808467265,93.7985,135.7,135.62,3.83326834]
[1767808467463,6.6385,135.7,135.62,3.83326834]
[1767808468565,6.6385,135.7,135.62,10.47516834]
[1767808469172,97.19380638,135.71,135.63,10.47466834]
[1767808470269,97.19380638,135.71,135.63,3.83326834]
[1767808471577,6.6383,135.7,135.63,3.83326834]
[1767808471974,3.39610638,135.68,135.59,3.88752411]
[1767808472173,6.64,135.67,135.59,3.88752411]
[1767808472372,87.16,135.67,135.59,3.88752411]
[1767808472575,2.17110722,135.65,135.59,3.88752411]
[1767808473167,2.17110722,135.63,135.57,10.53142411]
[1767808473368,2.17110722,135.63,135.57,3.88752411]
[1767808473862,2.17110722,135.64,135.57,3.88752411]
[1767808474062,2.17110722,135.66,135.57,3.88752411]
[1767808475373,8.81160722,135.66,135.57,3.88752411]
[1767808476280,6.6406,135.65,135.57,3.88752411]
[1767808479279,2.17110722,135.67,135.58,3.88752411]
[1767808480592,8.81060722,135.67,135.58,3.88752411]
[1767808483288,8.81060722,135.67,135.59,3.88752411]
[1767808484491,6.6395,135.67,135.59,3.88752411]
[1767808484685,2.17110722,135.66,135.59,10.53082411]
[1767808487788,8.81120722,135.66,135.59,3.88752411]
[1767808489088,2.17110722,135.65,135.59,3.88752411]
[1767808489688,8.81170722,135.65,135.59,3.88752411]
[1767808490192,2.17110722,135.66,135.59,3.88752411]
[1767808490889,6.6405,135.65,135.57,10.53192411]
[1767808491091,2.17110722,135.62,135.55,3.88752411]
[1767808491291,2.17110722,135.63,135.55,3.88752411]
[1767808492491,2.17110722,135.63,135.56,3.88752411]
[1767808492893,2.17110722,135.61,135.54,3.88752411]
[1767808493600,8.81360722,135.61,135.54,3.88752411]
[1767808493793,2.17110722,135.61,135.54,3.88752411]
[1767808494400,95.97300722,135.63,135.55,3.88752411]
[1767808495391,8.81300722,135.63,135.55,3.88752411]
[1767808496197,89.33110722,135.64,135.56,3.88752411]
[1767808496398,2.17110722,135.65,135.56,3.88752411]
[1767808497306,2.17110722,135.65,135.58,3.88752411]
[1767808498206,6.6415,135.63,135.58,3.88752411]
[1767808499704,8.81260722,135.63,135.58,3.88752411]
[1767808499904,6.642,135.62,135.56,10.53222411]
[1767808500500,8.81260722,135.63,135.56,10.53222411]
[1767808503209,8.81260722,135.63,135.56,3.88752411]
[1767808504510,6.6421,135.62,135.56,3.88752411]
[1767808505217,8.81370722,135.61,135.54,3.98228596]
[1767808505504,2.17110722,135.61,135.54,3.98228596]
[1767808506305,6.6431,135.6,135.54,3.98228596]
[1767808506510,2.17110722,135.62,135.54,3.98228596]
[1767808506814,8.81360722,135.62,135.55,3.98228596]
[1767808507015,2.17110722,135.62,135.55,3.98228596]
[1767808508810,6.6425,135.61,135.55,3.98228596]
[1767808509807,2.17110722,135.62,135.55,3.98228596]